Cogmind - Beta 14 @@@ ROGUE MODE // 2025.04.24 @ 22:45:02 Player: jumpy Result: Destroyed by S-10 Pest with Light Assault Rifle Performance ------------- Evolutions (0) 0 Regions Visited (4) 800 Robots Destroyed (10) 50 Value Destroyed (154) 154 Prototype IDs (23) 460 Alien Tech Used (0) 0 Bonus (300) 300 TOTAL SCORE: 1764 Bonus ------- Aligned with FarCom 300 Cogmind --------- Core Integrity 0/250 Matter 261/300 Energy 250/250 System Corruption 3% Temperature Cool (24) Movement Rolling (100) Location -9/Mines Parts ------- > --- POWER (1) -------- Ion Engine (fused) > --- PROPULSION (2) --- Compact Wheel Compact Wheel > --- UTILITY (2) ------ Medium Storage Unit Seismic Detector > --- WEAPON (2) ------- Bore Cannon > --- INVENTORY (10) --- Aluminum Leg Aluminum Leg Aluminum Leg Wheel Wheel Signal Interpreter Targeting Computer PSU Rigger Peak State ------------ > --- POWER ------------ Ion Engine > --- PROPULSION ------- Compact Wheel Compact Wheel > --- UTILITY ---------- Medium Storage Unit Seismic Detector > --- WEAPON ----------- Bore Cannon > --- INVENTORY -------- Aluminum Leg Aluminum Leg Aluminum Leg Wheel Wheel Signal Interpreter Targeting Computer PSU Rigger [Rating: 11] Favorites ----------- Power Ion Engine Engine Ion Engine Propulsion Compact Wheel Leg Aluminum Leg Wheel Compact Wheel Utility Seismic Detector Device Seismic Detector Storage Medium Storage Unit Weapon Medium Laser Energy Gun Medium Laser Ballistic Cannon Bore Cannon Build | -11 -10 -10 -10 -9 ------- Run | Yrd Mat Min Exi Min Slots Evolved . | . . . . . Power . | . . . . . Propulsion . | . . . . . Utility . | . . . . . Weapon . | . . . . . Parts Attached 21 | 7 4 9 . 1 Power 2 | 1 . 1 . . Engine 2 | 1 . 1 . . Core . | . . . . . Reactor . | . . . . . Propulsion 8 | 2 2 4 . . Treads . | . . . . . Leg 2 | 2 . . . . Wheel 6 | . 2 4 . . Hover . | . . . . . Flight . | . . . . . Utility 6 | 2 2 2 . . Device 3 | 1 . 2 . . Storage 3 | 1 2 . . . Processor . | . . . . . Hackware . | . . . . . Protection . | . . . . . Artifact . | . . . . . Weapon 5 | 2 . 2 . 1 Energy Gun 2 | 2 . . . . Energy Cannon . | . . . . . Ballistic Gun . | . . . . . Ballistic Cannon 3 | . . 2 . 1 Launcher . | . . . . . Special Weapon . | . . . . . Impact Weapon . | . . . . . Slashing Weapon . | . . . . . Piercing Weapon . | . . . . . Special Melee Weapon . | . . . . . Unidentified Prototypes . | . . . . . Parts Lost 9 | . . 9 . . Power 1 | . . 1 . . Propulsion 3 | . . 3 . . Utility 2 | . . 2 . . Weapon 3 | . . 3 . . Highest Loss Streak 4 | . . 4 . . To Critical Strikes . | . . . . . Average Slot Usage (%) 87 | . 100 88 75 85 Engine 13 | . 14 13 14 14 Wheel 24 | . 21 23 28 28 Device 13 | . 14 12 14 14 Storage 14 | . 14 14 14 14 Energy Gun 15 | . 28 19 . . Ballistic Cannon 3 | . . 4 4 14 Peak Build Rating 11 | 7 7 10 10 11 Average Rating 7 | 5 7 7 7 11 On Entrance 6 | . 7 7 10 7 Naked Turns . | . . . . . Heaviest Build 49 | 14 49 25 25 . Greatest Support 32 | 20 26 32 32 . Greatest Overweight (x) 1 | 1 1 1 . . Average Overweight (x) . | . . . . . Largest Inventory Capacity 20 | 8 20 10 10 10 Average Capacity 10 | 6 12 10 10 10 Most Carried 9 | 4 6 9 9 8 Average Carried 6 | 1 5 6 8 8 Final Capacity 10 | 8 10 10 10 10 Final Carried 9 | 4 6 7 9 8 Class Distribution -------------------- 100% | Mutant Dominant Class ---------------- Mutant | -10/Materials Mutant | -10/Mines Mutant | -10/Exiles Mutant | -9/Mines Resources | -11 -10 -10 -10 -9 ----------- Run | Yrd Mat Min Exi Min Matter Collected 500 | 270 18 212 . . Remotely . | . . . . . Salvage Created 473 | 160 18 287 . 8 Parts 22 | 13 2 4 . 3 Haulers Intercepted . | . . . . . Recyclers Shooed . | . . . . . Parts Field Recycled . | . . . . . Retrieved Matter . | . . . . . Parts Self-Destructed . | . . . . . Prevented . | . . . . . Kills | -11 -10 -10 -10 -9 ------- Run | Yrd Mat Min Exi Min Combat Hostiles Destroyed 18 | . . 17 . 1 Guns 12 | . . 12 . . Cannons 6 | . . 5 . 1 Classes Destroyed 6 | 2 1 3 . . Tunneler 3 | 3 . . . . Recycler 1 | 1 . . . . Watcher 1 | . 1 . . . Swarmer 3 | . . 2 . 1 Grunt 2 | . . 2 . . Assembled 13 | . . 13 . . Best Kill Streak 5 | 4 1 5 . 1 Combat Bots Only 5 | . . 5 . 1 Max Kills in Single Turn 2 | 1 1 2 . 1 Gunslinging 1 | . . 1 . . Exploded . | . . . . . Melee . | . . . . . Uniques/NPCs Destroyed . | . . . . . Combat | -11 -10 -10 -10 -9 -------- Run | Yrd Mat Min Exi Min Hostile Shots Fired 97 | . . 91 . 6 Missed 33 | . . 31 . 2 Damage Taken 844 | . . 813 . 31 Core 255 | . . 236 . 19 Absorbed by Shields . | . . . . . Core Remaining (%) 100 | 100 . . . . Volleys Fired 73 | 4 4 63 . 2 Largest 2 | 2 2 2 . 1 Hottest 90 | 90 90 90 . 57 Shots Fired 93 | 8 8 75 . 2 Gun 69 | 8 8 53 . . Cannon 24 | . . 22 . 2 Launcher . | . . . . . Special . | . . . . . Kinetic 24 | . . 22 . 2 Thermal 69 | 8 8 53 . . Explosive . | . . . . . Electromagnetic . | . . . . . Robot Hit Streak 7 | 3 1 7 . 2 Robot Miss Streak 6 | 1 4 6 . 1 Penetration Max . | . . . . . Secondary Targets 1 | . . 1 . . Max Gunslinging Chain 1 | . . 1 . . Shots Hit Robots 54 | 5 2 46 . 1 Core Hits 37 | 5 1 30 . 1 Critical Kills 1 | . . 1 . . Critical Parts Destroyed . | . . . . . Critical Strikes 5 | . . 5 . . Burn 4 | . . 4 . . Destroy 1 | . . 1 . . Melee Attacks . | . . . . . Impact . | . . . . . Slashing . | . . . . . Piercing . | . . . . . Sneak Attacks . | . . . . . Combat Hostiles . | . . . . . Follow-up Attacks . | . . . . . Damage Inflicted 800 | 60 22 695 . 23 Guns 588 | 60 22 506 . . Cannons 212 | . . 189 . 23 Explosions . | . . . . . Melee . | . . . . . Ramming . | . . . . . Kinetic 212 | . . 189 . 23 Thermal 588 | 60 22 506 . . Explosive . | . . . . . Electromagnetic . | . . . . . Impact . | . . . . . Slashing . | . . . . . Piercing . | . . . . . Highest Corruption 3 | . . 3 3 3 Average Corruption 3 | . . 3 3 3 Corruption Purged . | . . . . . Corruption Blocked . | . . . . . Effects 12 | . . 8 4 . Message Errors 2 | . . 2 . . Matter Fused 3 | . . 2 1 . Heat Flow Errors 1 | . . . 1 . Energy Discharges 2 | . . 1 1 . Parts Fused 1 | . . . 1 . Data Loss (minor) 1 | . . 1 . . Misfires 1 | . . 1 . . Weapon Failures 1 | . . 1 . . Overload Shots . | . . . . . Overflow Damage . | . . . . . Projectiles . | . . . . . Explosions . | . . . . . Melee . | . . . . . Knockbacks 4 | . . 4 . . Impact . | . . . . . Kinetic 4 | . . 4 . . Secondary . | . . . . . Self-Inflicted Damage . | . . . . . Shots . | . . . . . Rammed . | . . . . . Targets Rammed . | . . . . . Kicked . | . . . . . Crushed . | . . . . . Highest Temperature 325 | 30 90 325 268 24 Average Temperature 86 | 18 40 95 138 16 Received Heat Transfer 259 | . . 259 . . Effects 4 | . . 4 . . Shutdowns 1 | . . 1 . . Interference 3 | . . 3 . . Siege Activations . | . . . . . Robots Corrupted . | . . . . . Combat Hostiles . | . . . . . Parts Fried . | . . . . . Impact Corruptions . | . . . . . Robots Melted . | . . . . . Combat Hostiles . | . . . . . Parts Melted . | . . . . . Heat Transferred 1928 | 161 50 1717 . . Parts Sabotaged . | . . . . . Parts Stolen . | . . . . . Parts Stripped . | . . . . . Power Chain Reactions . | . . . . . Alert | -11 -10 -10 -10 -9 ------- Run | Yrd Mat Min Exi Min Peak Influence 105 | 20 50 105 . 31 Initial 19 | . 13 19 . . Average 28 | 5 37 29 . 22 Maximum Alert Level . | . . . . . Low Security (%) 100 | 100 100 100 . 100 Level 1 . | . . . . . Level 2 . | . . . . . Level 3 . | . . . . . Level 4 . | . . . . . Level 5 . | . . . . . High Security . | . . . . . Max Security . | . . . . . Squads Dispatched . | . . . . . Investigation . | . . . . . Extermination . | . . . . . Reinforcement . | . . . . . Assault . | . . . . . Garrison . | . . . . . Intercept . | . . . . . Searches Triggered . | . . . . . Construction Impeded . | . . . . . Haulers Reinforced . | . . . . . Active Scanning Responses . | . . . . . Cargo Convoy Interrupts . | . . . . . Stealth | -11 -10 -10 -10 -9 --------- Run | Yrd Mat Min Exi Min Distress Signals . | . . . . . Communications Jammed . | . . . . . Distress Signals . | . . . . . Times Spotted 26 | . 3 20 . 3 Peak Tracking Total 5 | . 2 5 . 3 Tactical Retreats . | . . . . . Traps | -11 -10 -10 -10 -9 ------- Run | Yrd Mat Min Exi Min Traps Triggered . | . . . . . Indirectly . | . . . . . Trap Hack Attempts . | . . . . . Triggered . | . . . . . Disarmed . | . . . . . Reprogrammed . | . . . . . Reused . | . . . . . Traps Extracted . | . . . . . Installed . | . . . . . Triggered . | . . . . . Machines | -11 -10 -10 -10 -9 ---------- Run | Yrd Mat Min Exi Min Machines Disabled . | . . . . . Max in Single Turn . | . . . . . Machines Repaired . | . . . . . Machines Dismantled . | . . . . . Machines Sabotaged . | . . . . . Overloaded Fab Kills . | . . . . . Hacking | -11 -10 -10 -10 -9 --------- Run | Yrd Mat Min Exi Min Machines Accessed 2 | . . . 2 . Terminals . | . . . . . Fabricators . | . . . . . Repair Stations . | . . . . . Recycling Units . | . . . . . Scanalyzers . | . . . . . Garrison Access . | . . . . . Total Hacks 3 | . . . 3 . Successful 3 | . . . 3 . Failed . | . . . . . Catastrophic . | . . . . . Database Lockouts . | . . . . . Manual 2 | . 1 . 1 . Terminals . | . . . . . Fabricators . | . . . . . Repair Stations . | . . . . . Recycling Units . | . . . . . Scanalyzers . | . . . . . Garrison Access . | . . . . . Terminal Hacks 3 | . . . 3 . Record 2 | . . . 2 . Derelict Proto ID Bank 1 | . . . 1 . Fabricator Hacks . | . . . . . Repair Station Hacks . | . . . . . Recycling Unit Hacks . | . . . . . Scanalyzer . | . . . . . Garrison Access Hacks . | . . . . . Unauthorized Hacks . | . . . . . Terminals . | . . . . . Fabricators . | . . . . . Repair Stations . | . . . . . Recycling Units . | . . . . . Scanalyzers . | . . . . . Garrison Access . | . . . . . Data Cores Recovered . | . . . . . Used . | . . . . . Hacking Detections 1 | . 1 . . . Full Trace Events . | . . . . . Feedback Events . | . . . . . Feedback Blocked . | . . . . . Robot Schematics Acquired . | . . . . . Robots Built . | . . . . . Authchips . | . . . . . Time . | . . . . . Total Robot Build Rating . | . . . . . Part Schematics Acquired . | . . . . . Parts Built . | . . . . . Authchips . | . . . . . Time . | . . . . . Total Part Build Rating . | . . . . . Parts Repaired . | . . . . . Time . | . . . . . Parts Recycled . | . . . . . Recycled Matter . | . . . . . Retrieved Matter . | . . . . . Retrieved Components . | . . . . . Parts Scanalyzed . | . . . . . Part Schematics Acquired . | . . . . . Parts Damaged . | . . . . . Bothacking | -11 -10 -10 -10 -9 ------------ Run | Yrd Mat Min Exi Min Used RIF Installer . | . . . . . Robots Hacked . | . . . . . Non-combat . | . . . . . Combat . | . . . . . Robot Hacks Applied . | . . . . . Relay Couplers Released . | . . . . . Fabnet Peak Effective % . | . . . . . Robots Rewired . | . . . . . Allies Hacked . | . . . . . Hacks Repelled . | . . . . . Allies | -11 -10 -10 -10 -9 -------- Run | Yrd Mat Min Exi Min Total Allies . | . . . . . Largest Group . | . . . . . Highest-Rated Group . | . . . . . Highest-Rated Ally . | . . . . . Total Orders . | . . . . . Ally Attacks . | . . . . . Total Damage . | . . . . . Kills . | . . . . . Allies Corrupted . | . . . . . Allies Melted . | . . . . . Intel | -11 -10 -10 -10 -9 ------- Run | Yrd Mat Min Exi Min Robot Analysis Total . | . . . . . Derelict Logs Recovered 3 | . . 3 . . Drone Launches . | . . . . . Drone Recoveries . | . . . . . Exploration | -11 -10 -10 -10 -9 ------------- Run | Yrd Mat Min Exi Min Turns Passed 1371 | 92 166 786 323 4 Spaces Moved 990 | 58 144 466 322 . Core 7 | 7 . . . . Treads . | . . . . . Legs 79 | 51 28 . . . Wheels 904 | . 116 466 322 . Hover . | . . . . . Flight . | . . . . . Fastest Speed 50 | 50 90 80 100 . Average Speed 98 | 113 100 95 100 . Slowest Speed 120 | 120 120 115 100 . Overloaded Moves . | . . . . . Propulsion Burnouts . | . . . . . Robots Hopped . | . . . . . Cave-ins Triggered . | . . . . . Exploration Rate (%) 36 | 5 34 69 66 6 Regions Visited 4 Branch Regions 3 Pre-discovered Areas 1 | . . 1 . . Known Exits Taken . | . . . . . Unknown Exits Taken 4 | 1 1 1 1 . Scrap Searched 1 | . . 1 . . Spaces Dug . | . . . . . Terrain Destroyed 3 | . . 2 . 1 Melee . | . . . . . Projectile 3 | . . 2 . 1 AOE . | . . . . . Terrain Rammed . | . . . . . Walls Destroyed . | . . . . . Machines Disabled . | . . . . . Actions | -11 -10 -10 -10 -9 --------- Run | Yrd Mat Min Exi Min Total 1283 | 72 156 729 323 3 Wait 186 | . . 186 . . Move 986 | 57 143 465 321 . Hop . | . . . . . Pick Up 14 | 4 3 6 1 . Fast Attach 9 | 7 . 2 . . Attach 7 | . . 6 . 1 Detach 1 | . . . 1 . Swap 5 | . 4 1 . . Drop 2 | . 2 . . . Fire 73 | 4 4 63 . 2 Melee . | . . . . . Ram . | . . . . . Kick . | . . . . . Crush . | . . . . . Escape Stasis . | . . . . . Rewire . | . . . . . Trap . | . . . . . Miscellaneous . | . . . . . Route ------- -11/Scrapyard -10/Materials (discovered 2 exits: [*Min x2]) -10/Mines -10/Exiles -9/Mines History --------- Turn | Location | Event 10 | -11/Scrapyard | Discovered new exit (range 16) 93 | -11/Scrapyard | Entered Materials 234 | -10/Materials | Discovered new exit (range 6) 235 | -10/Materials | Discovered new exit (range 16) 259 | -10/Materials | Entered Mines 260 | -10/Mines | Assembled infested the area 264 | -10/Mines | Met a Derelict bent on vengeance 302 | -10/Mines | Build established: Mutant 627 | -10/Mines | Core integrity fell below 50% 680 | -10/Mines | Learned Materials terminal intel 697 | -10/Mines | A weapon hastily lodged in a ceiling crevice suddenly fell to the ground 835 | -10/Mines | Lost 4 parts (1p1n2w) 876 | -10/Mines | Found a hidden stash of uninstalled traps 903 | -10/Mines | Core integrity fell below 20% 906 | -10/Mines | Learned 2 Materials zone layouts 1041 | -10/Mines | Deemed a non-threat by the Exiles lab entrance 1041 | -10/Mines | Discovered new exit (range 5) 1045 | -10/Mines | Entered Exiles 1072 | -10/Exiles | Met 8R-AWN 1086 | -10/Exiles | Met EX-HEX 1152 | -10/Exiles | Met EX-BIN 1211 | -10/Exiles | Aligned with FarCom system 1212 | -10/Exiles | Given EX-Vault access code 1237 | -10/Exiles | Opened EX-Vault 1255 | -10/Exiles | Found PSU Rigger 1277 | -10/Exiles | Warned to stay clear of 0b10 Research branches 1310 | -10/Exiles | Met EX-DEC 1358 | -10/Exiles | Discovered new exit (range 11) 1368 | -10/Exiles | Left Exiles lab with PSU Rigger 1368 | -10/Exiles | Entered Mines 1372 | -9/Mines | Destroyed by S-10 Pest with Light Assault Rifle Last Messages --------------- sneak in here and steal a few of HEX's prototypes. EX-DEC: Ah I see we have a visitor. One wrong move in here and I'll invert your atomic chain! 01312_ EX-DEC: "Oops, I hope HEX didn't hear that..." 01313_ System corrupted: Heat flow error (+288). 01321_ Connecting with EX-Message Board... >>Record "MSG004742-01" I don't think we can trust Data Miner anymore. For a while now the data we've been getting from that quarter seems anything but impartial. >>Record "MSG004795-01" Could someone repair the Mines activity scanner? It seems to fail sometimes, and when it does we can't send 8R-AWN out on exploratory runs. 01358_ EXIT=FOUND LOCATION=UNKNOWN GOAL=ESCAPE 01368_ Receiving FarCom transmissions... 01369_ HV Slug penetrates S-10 Pest. 01369_ S-10 Pest destroyed. 01371_ HV Slug penetrates Wall. Map ----- +----------------------------------------------------+ | ??????????????????????????????????????? | | ??????????????????????????????????????? | | ??????????????????????????????????????? | | ??????????????????????????????????????? | | ??????????????????????????????????????? | | ??????????????????????????????????????? | | ??????????????????????????????????????? | | ??????????????????????????????????????? | | ??????????????????????????????????????? | | ??????????????????????????????????????? | | ??????????????????????????????????????? | | ??????????????????????????????????????? | | ??????????????????????????????????????? | | ??????????????????????????????????????? | | ????????????##????????????????????????? | | ???????????? ????????????????????????? | | ????????????# ????????????????????????? | | ???????###??# ????????????????????????? | | ??????## ### ????????????????????????? | | ??????# ##??????????????????????? | | ??????# ##?????????????????????? | | ???????# ##????????????????????? | | ???????# #????????????????????? | | ???????# * ##???????????????????? | | ????????# =%% #???????????????????? | | ????????# s @= #???????????????????? | | ???????# ##???????????????????? | | ?????# s ###????????????????????? | | ?????# ##??????????????????????? | | ????#; ????????????????????????? | | ????### #????????????????????????? | | ??????## #?????????????????????????? | | ???????## #??????????????????????????? | | ????????###???????????????????????????? | | ??????????????????????????????????????? | | ??????????????????????????????????????? | | ??????????????????????????????????????? | | ??????????????????????????????????????? | | ??????????????????????????????????????? | | ??????????????????????????????????????? | | ??????????????????????????????????????? | | ??????????????????????????????????????? | | ??????????????????????????????????????? | | ??????????????????????????????????????? | | ??????????????????????????????????????? | | ??????????????????????????????????????? | | ??????????????????????????????????????? | | ??????????????????????????????????????? | | ??????????????????????????????????????? | | ??????????????????????????????????????? | +----------------------------------------------------+ Best States ------------- Heat Dissipation 25 Energy Generation 10 Energy Capacity 250 Matter Stores 300 Matter Capacity 300 Sight Range 16 Terrain Scan Density 10 Evasion (%) 55 Item Schematics ----------------- None Robot Schematics ------------------ None Fabricated ------------ Nothing Alien Tech Used ----------------- None Achievements -------------- None Challenges ------------ None Game ------ Seed LightpackMediumPenetrator Manual? 0 Play Time 00:10:23 Cumulative 47.0 hours Start 2025.04.24 @ 22:33:48 End 2025.04.24 @ 22:45:02 Sessions 1 Manual Loads 0 Difficulty Rogue Special Mode None Game No. 146 Rogue 146 Adventurer 0 Explorer 0 Win Type - Total 0 Types 0/0/0/0/0/0/0/0/0 Lore% 14 Gallery% 37 Achievement% 30 Wizard Run 0 Options --------- Layout 0 ASCII 0 Keyboard 0 Movement Numpad Keybinds 0 Fullscreen 2 Font 18/Terminus Map View 76x50 Zoom Use 0% Tactical HUD 1 Map Filters NONE Filters NONE Steam 1 RUN: 5498cb13-9b41-413d-b018-0dd99aa2f9ef